fUST/lending_fUST_20250913
["ID","MTS","AMOUNT","RATE_DAILY","PERIOD"]
[385304437,1757755914621,-595.0046054,0.00027671,3]
[385304438,1757755914632,-480.0,0.00027671,3]
[385304439,1757755914641,-480.0,0.00027671,3]
[385304440,1757755914651,-579.86,0.00027671,3]
[385304441,1757755914660,-480.0,0.00027671,3]
[385304442,1757755914670,-480.0,0.00027671,3]
[385304443,1757755914680,-480.0,0.00027671,3]
[385304444,1757755914690,-6737.45,0.00027671,3]
[385304445,1757755914699,-2411.48,0.00027671,3]
[385304446,1757755914709,-4800.05,0.00027671,3]
[385304447,1757755914718,-480.0,0.00027671,3]
[385304448,1757755914730,-480.0,0.00027671,3]
[385304449,1757755914740,-1662.72,0.00027671,3]
[385304450,1757755914750,-836.54,0.00027671,3]
[385304451,1757755914760,-480.0,0.00027671,3]
[385304452,1757755914769,-1708.68,0.00027671,3]
[385304453,1757755914778,-619.88,0.00027671,3]
[385304454,1757755914789,-1393.21,0.00027671,3]
[385304455,1757755914798,-1863.52,0.00027671,3]
[385304456,1757755914808,-480.0,0.00027671,3]
[385304457,1757755914818,-1307.29,0.00027671,3]
[385304458,1757755914828,-480.0,0.00027671,3]
[385304459,1757755914837,-480.0,0.00027671,3]
[385304460,1757755914847,-528.66,0.00027671,3]
[385304461,1757755914857,-494.96,0.00027671,3]
[385304462,1757755914867,-1103.37,0.00027671,3]
[385304463,1757755914876,-518.27,0.00027671,3]
[385304464,1757755914887,-480.0,0.00027671,3]
[385304465,1757755914896,-516.82,0.00027671,3]
[385304466,1757755914905,-487.61,0.00027671,3]
[385304467,1757755914915,-832.35,0.00027671,3]
[385304468,1757755914926,-480.0,0.00027671,3]
[385304469,1757755914936,-480.0,0.00027671,3]
[385304470,1757755914946,-480.0,0.00027671,3]
[385304471,1757755914956,-1916.67,0.00027671,3]
[385304472,1757755914965,-480.0,0.00027671,3]
[385304473,1757755914975,-659.4,0.00027671,3]
[385304474,1757755914986,-480.0,0.00027671,3]
[385304475,1757755914995,-480.0,0.00027671,3]
[385304476,1757755915005,-416.04420775,0.00027671,3]
[385304477,1757755915014,-480.0,0.00027671,3]
[385304478,1757755915023,-480.0,0.00027671,3]
[385304479,1757755915033,-597.41,0.00027671,3]
[385304480,1757755915043,-270.46886895,0.00027671,3]
[385304481,1757755915053,-480.0,0.00027671,3]
[385304482,1757755915062,-606.7,0.00027671,3]
[385304483,1757755915071,-3205.05,0.00027671,3]
[385304484,1757755915081,-480.0,0.00027671,3]
[385304485,1757755915090,-480.0,0.00027671,3]
[385304486,1757755915099,-480.0,0.00027671,3]
[385304487,1757755915109,-744.12,0.00027671,3]
[385304488,1757755915118,-480.0,0.00027671,3]
[385304489,1757755915127,-2631.63,0.00027671,3]
[385304490,1757755915136,-500.0,0.00027672,2]
[385304491,1757755915146,-260.81301056,0.00027693,2]
[385304492,1757755915155,-154.6121,0.000277,3]
[385304493,1757755915164,-500.0,0.000277,2]
[385304494,1757755915174,-500.0,0.00027719,2]
[385304495,1757755915185,-151.26,0.00027737,15]
[385304496,1757755915195,-1121.43,0.00027771,15]
[385304497,1757755915205,-1057.0990167,0.00027794,2]
[385304498,1757755915347,-3071.5284071,0.00027794,2]
[385304499,1757755915357,-500.0,0.00027795,2]
[385304500,1757755915366,-804.0,0.00027797,7]
[385304501,1757755915375,-500.0,0.00027797,2]
[385304502,1757755915384,-500.0,0.00027801,2]
[385304503,1757755915393,-151.26,0.00027837,15]
[385304504,1757755915403,-1121.43,0.00027871,15]
[385304505,1757755915412,-500.0,0.00027876,2]
[385304506,1757755915423,-1250.0,0.00027888,19]
[385304507,1757755915433,-500.58843343,0.00027908,2]
[385304508,1757755915442,-1485.0575856,0.00027918,2]
[385304509,1757755915451,-151.26,0.00027937,15]
[385304510,1757755915460,-1035.06,0.00027945,3]
[385304511,1757755915470,-480.0,0.00027945,3]
[385304512,1757755915480,-480.0,0.00027945,3]
[385304513,1757755915489,-480.0,0.00027945,3]
[385304514,1757755915498,-480.0,0.00027945,3]
[385304515,1757755915507,-480.0,0.00027945,3]
[385304516,1757755915516,-480.0,0.00027945,3]
[385304517,1757755915526,-480.0,0.00027945,3]
[385304518,1757755915537,-480.0,0.00027945,3]
[385304519,1757755915547,-480.0,0.00027945,3]
[385304520,1757755915557,-480.0,0.00027945,3]
[385304521,1757755915567,-480.0,0.00027945,3]
[385304522,1757755915576,-480.0,0.00027945,3]
[385304523,1757755915588,-480.0,0.00027945,3]
[385304524,1757755915598,-480.0,0.00027945,3]
[385304525,1757755915608,-480.0,0.00027945,3]
[385304526,1757755915617,-484.77101321,0.00027945,3]
[385304527,1757755915626,-480.0,0.00027945,3]
[385304528,1757755915636,-480.0,0.00027945,3]
[385304529,1757755915645,-480.0,0.00027945,3]
[385304530,1757755915654,-480.0,0.00027945,3]
[385304531,1757755915664,-480.0,0.00027945,3]
[385304532,1757755915674,-480.0,0.00027945,3]
[385304533,1757755915683,-480.0,0.00027945,3]
[385304534,1757755915694,-480.0,0.00027945,3]
[385304535,1757755915704,-480.0,0.00027945,3]
[385304536,1757755915714,-480.0,0.00027945,3]
[385304537,1757755915724,-480.0,0.00027945,3]
[385304538,1757755915733,-480.0,0.00027945,3]
[385304539,1757755915743,-480.0,0.00027945,3]
[385304540,1757755915752,-480.0,0.00027945,3]
[385304541,1757755915762,-480.0,0.00027945,3]
[385304542,1757755915771,-480.0,0.00027945,3]
[385304543,1757755915781,-499.1,0.00027945,3]
[385304544,1757755915790,-480.69,0.00027945,3]
[385304545,1757755915800,-480.0,0.00027945,3]
[385304546,1757755915809,-480.0,0.00027945,3]
[385304547,1757755915819,-480.0,0.00027945,3]
[385304548,1757755915829,-519.58,0.00027945,3]
[385304549,1757755915839,-619.65,0.00027945,3]
[385304550,1757755915850,-480.0,0.00027945,3]
[385304551,1757755915860,-587.99,0.00027945,3]
[385304552,1757755915870,-480.0,0.00027945,3]
[385304553,1757755915880,-523.11,0.00027945,3]
[385304554,1757755915889,-653.04,0.00027945,3]
[385304555,1757755915899,-687.36,0.00027945,3]
[385304556,1757755915910,-480.0,0.00027945,3]
[385304557,1757755915922,-480.0,0.00027945,3]
[385304558,1757755915933,-484.0,0.00027945,3]
[385304559,1757755915944,-480.0,0.00027945,3]
[385304560,1757755915953,-523.39,0.00027945,3]
[385304561,1757755915965,-480.0,0.00027945,3]
[385304562,1757755915975,-509.39,0.00027945,3]
[385304563,1757755915984,-480.0,0.00027945,3]
[385304564,1757755915994,-480.0,0.00027945,3]
[385304565,1757755916003,-480.0,0.00027945,3]
[385304566,1757755916012,-480.0,0.00027945,3]
[385304567,1757755916022,-480.0,0.00027945,3]
[385304568,1757755916031,-480.0,0.00027945,3]
[385304569,1757755916041,-480.0,0.00027945,3]
[385304570,1757755916051,-480.0,0.00027945,3]
[385304571,1757755916062,-480.0,0.00027945,3]
[385304572,1757755916071,-1336.28,0.00027945,3]
[385304573,1757755916081,-480.0,0.00027945,3]
[385304574,1757755916090,-480.0,0.00027945,3]
[385304575,1757755916100,-480.0,0.00027945,3]
[385304576,1757755916109,-440.95357449,0.00027945,3]
[385304577,1757755916118,-480.0,0.00027945,3]
[385304578,1757755916128,-480.0,0.00027945,3]
[385304579,1757755916137,-480.0,0.00027945,3]
[385304580,1757755916146,-611.03951881,0.00027945,3]
[385304581,1757755916155,-480.0,0.00027945,3]
[385304582,1757755916165,-501.62,0.00027945,3]
[385304583,1757755916174,-480.0,0.00027945,3]
[385304584,1757755916184,-514.0,0.00027945,3]
[385304585,1757755916193,-480.0,0.00027945,3]
[385304586,1757755916202,-480.0,0.00027945,3]
[385304587,1757755916212,-509.95789793,0.00027945,3]
[385304588,1757755916222,-480.0,0.00027945,3]
[385304589,1757755916233,-480.0,0.00027945,3]
[385304590,1757755916243,-359.03007773,0.00027945,3]
[385304591,1757755916252,-537.4,0.00027945,3]
[385304592,1757755916269,-606.47,0.00027945,3]
[385304593,1757755916279,-627.39,0.00027945,3]
[385304594,1757755916289,-480.0,0.00027945,3]
[385304595,1757755916300,-480.0,0.00027945,3]
[385304596,1757755916310,-515.6,0.00027945,3]
[385304597,1757755916319,-480.0,0.00027945,3]
[385304598,1757755916330,-480.0,0.00027945,3]
[385304599,1757755916340,-480.0,0.00027945,3]
[385304600,1757755916349,-480.0,0.00027945,3]
[385304601,1757755916360,-480.0,0.00027945,3]
[385304602,1757755916369,-657.1,0.00027945,7]
[385304603,1757755916379,-480.0,0.00027945,3]
[385304604,1757755916389,-4289.53,0.00027945,3]
[385304605,1757755916398,-443.02268136,0.00027945,3]
[385304606,1757755916408,-480.0,0.00027945,3]
[385304607,1757755916417,-615.59,0.00027945,3]
[385304608,1757755916427,-1017.38,0.00027945,3]
[385304609,1757755916436,-480.0,0.00027945,3]
[385304610,1757755916445,-480.0,0.00027945,3]
[385304611,1757755916455,-480.0,0.00027945,3]
[385304612,1757755916464,-480.0,0.00027945,3]
[385304613,1757755916473,-480.0,0.00027945,3]
[385304614,1757755916484,-480.0,0.00027945,3]
[385304615,1757755916493,-448.3582766,0.00027945,3]
[385304616,1757755916503,-480.0,0.00027945,3]
[385304617,1757755916512,-480.0,0.00027945,3]
[385304618,1757755916521,-480.0,0.00027945,3]
[385304619,1757755916531,-480.0,0.00027945,3]
[385304620,1757755916540,-480.0,0.00027945,3]
[385304621,1757755916549,-480.0,0.00027945,3]
[385304622,1757755916559,-480.0,0.00027945,3]
[385304623,1757755916568,-480.0,0.00027945,3]
[385304624,1757755916577,-480.0,0.00027945,3]
[385304625,1757755916586,-480.0,0.00027945,3]
[385304626,1757755916596,-480.0,0.00027945,3]
[385304627,1757755916606,-480.0,0.00027945,3]
[385304628,1757755916615,-480.0,0.00027945,3]
[385304629,1757755916624,-480.0,0.00027945,3]
[385304630,1757755916633,-480.0,0.00027945,3]
[385304631,1757755916642,-480.0,0.00027945,3]
[385304632,1757755916651,-485.55,0.00027945,3]
[385304633,1757755916660,-480.0,0.00027945,3]
[385304634,1757755916670,-480.0,0.00027945,3]
[385304635,1757755916680,-480.0,0.00027945,3]
[385304636,1757755916690,-505.27,0.00027945,3]
[385304637,1757755916699,-480.0,0.00027945,3]
[385304638,1757755916708,-490.5759646,0.00027945,3]
[385304639,1757755916718,-480.0,0.00027945,3]
[385304640,1757755916727,-480.0,0.00027945,3]
[385304641,1757755916736,-480.0,0.00027945,3]
[385304642,1757755916746,-480.0,0.00027945,3]
[385304643,1757755916755,-395.71067648,0.00027945,3]
[385304644,1757755916765,-480.0,0.00027945,3]
[385304645,1757755916774,-480.0,0.00027945,3]
[385304646,1757755916784,-480.0,0.00027945,3]
[385304647,1757755916793,-480.0,0.00027945,3]
[385304648,1757755916803,-480.0,0.00027945,3]
[385304649,1757755916812,-184.55918746,0.00027945,3]
[385304650,1757755916821,-728.96,0.00027945,3]
[385304651,1757755916831,-480.0,0.00027945,3]
[385304652,1757755916841,-480.0,0.00027945,3]
[385304653,1757755916849,-480.0,0.00027945,3]
[385304654,1757755916858,-508.85,0.00027945,3]
[385304655,1757755916867,-503.64,0.00027945,3]
[385304656,1757755916876,-886.0,0.00027945,3]
[385304657,1757755916886,-480.0,0.00027945,3]
[385304658,1757755916895,-480.0,0.00027945,3]
[385304659,1757755916905,-605.6,0.00027945,3]
[385304660,1757755916915,-480.0,0.00027945,3]
[385304661,1757755916927,-1273.7,0.00027945,3]
[385304662,1757755916937,-576.34,0.00027945,3]
[385304663,1757755916946,-480.0,0.00027945,3]
[385304664,1757755916955,-480.0,0.00027945,3]
[385304665,1757755916964,-577.69025394,0.00027945,3]
[385304666,1757755916974,-480.0,0.00027945,3]
[385304667,1757755916982,-480.0,0.00027945,3]
[385304668,1757755916991,-189.28495381,0.00027945,3]
[385304669,1757755917001,-480.0,0.00027945,3]
[385304670,1757755917011,-531.61,0.00027945,3]
[385304671,1757755917020,-576.19,0.00027945,3]
[385304672,1757755917029,-480.0,0.00027945,3]
[385304673,1757755917038,-480.0,0.00027945,3]
[385304674,1757755917048,-480.0,0.00027945,3]
[385304675,1757755917057,-480.0,0.00027945,3]
[385304676,1757755917066,-1700.77,0.00027945,3]
[385304677,1757755917075,-480.0,0.00027945,3]
[385304678,1757755917084,-489.71,0.00027945,3]
[385304679,1757755917093,-480.0,0.00027945,3]
[385304680,1757755917102,-683.52,0.00027945,3]
[385304681,1757755917111,-532.68,0.00027945,3]
[385304682,1757755917120,-877.42,0.00027945,3]
[385304683,1757755917129,-480.0,0.00027945,3]
[385304684,1757755917139,-2036.55,0.00027945,3]
[385304685,1757755917148,-480.0,0.00027945,3]
[385304686,1757755917158,-480.0,0.00027945,3]
[385304687,1757755917167,-675.8,0.00027945,3]
[385304688,1757755917177,-480.0,0.00027945,3]
[385304689,1757755917188,-1092.94,0.00027945,3]
[385304690,1757755917198,-341.52469768,0.00027945,3]
[385304691,1757755917208,-864.33,0.00027945,3]
[385304692,1757755917218,-480.0,0.00027945,3]
[385304693,1757755917228,-480.0,0.00027945,3]
[385304694,1757755917238,-480.0,0.00027945,3]
[385304695,1757755917248,-480.0,0.00027945,3]
[385304696,1757755917257,-7300.91,0.00027945,3]
[385304697,1757755917269,-480.0,0.00027945,3]
[385304698,1757755917278,-246.32715195,0.00027945,3]
[385304699,1757755917287,-480.0,0.00027945,3]
[385304700,1757755917296,-1623.88,0.00027945,3]
[385304701,1757755917306,-480.0,0.00027945,3]
[385304702,1757755917316,-496.48181375,0.00027945,3]
[385304703,1757755917325,-1080.81,0.00027945,3]
[385304704,1757755917337,-480.0,0.00027945,3]
[385304705,1757755917347,-480.0,0.00027945,3]
[385304706,1757755917357,-480.0,0.00027945,3]
[385304707,1757755917366,-480.0,0.00027945,3]
[385304708,1757755917375,-480.0,0.00027945,3]
[385304709,1757755917384,-480.0,0.00027945,3]
[385304710,1757755917393,-480.0,0.00027945,3]
[385304711,1757755917402,-480.0,0.00027945,3]
[385304712,1757755917411,-480.0,0.00027945,3]
[385304713,1757755917421,-586.32,0.00027945,3]
[385304714,1757755917430,-480.0,0.00027945,3]
[385304715,1757755917441,-866.22,0.00027945,3]
[385304716,1757755917450,-585.1,0.00027945,3]
[385304717,1757755917460,-4460.51,0.00027945,3]
[385304718,1757755917469,-774.68,0.00027945,3]
[385304719,1757755917478,-480.0,0.00027945,3]
[385304720,1757755917487,-480.0,0.00027945,3]
[385304721,1757755917497,-480.0,0.00027945,3]
[385304722,1757755917506,-597.16,0.00027945,3]
[385304723,1757755917516,-490.58981072,0.00027945,3]
[385304724,1757755917525,-11885.11,0.00027945,3]
[385304725,1757755917534,-829.91,0.00027945,3]
[385304726,1757755917543,-646.07,0.00027945,3]
[385304727,1757755917552,-480.0,0.00027945,3]
[385304728,1757755917562,-490.24,0.00027945,3]
[385304729,1757755917571,-500.7,0.00027945,3]
[385304730,1757755917581,-891.22,0.00027945,3]
[385304731,1757755917590,-534.4,0.00027945,3]
[385304732,1757755917600,-1033.36,0.00027945,3]
[385304733,1757755917609,-624.70736001,0.00027945,3]
[385304734,1757755917618,-541.98,0.00027945,3]
[385304735,1757755917627,-490.15061213,0.00027945,3]
[385304736,1757755917636,-977.05,0.00027945,3]
[385304737,1757755917645,-432.26472802,0.00027945,3]
[385304738,1757755917655,-681.35,0.00027945,3]
[385304739,1757755917664,-480.0,0.00027945,3]
[385304740,1757755917674,-480.0,0.00027945,3]
[385304741,1757755917684,-480.0,0.00027945,3]
[385304742,1757755917694,-320.76332431,0.00027945,3]
[385304743,1757755917704,-539.07127353,0.00027945,3]
[385304744,1757755917713,-480.0,0.00027945,3]
[385304745,1757755917723,-579.86,0.00027945,3]
[385304746,1757755917732,-192.9299137,0.00027945,3]
[385304747,1757755917741,-480.0,0.00027945,3]
[385304748,1757755917750,-480.0,0.00027945,3]
[385304749,1757755917759,-6737.45,0.00027945,3]
[385304750,1757755917768,-2411.48,0.00027945,3]
[385304751,1757755917778,-4800.05,0.00027945,3]
[385304752,1757755917787,-480.0,0.00027945,3]
[385304753,1757755917796,-480.0,0.00027945,3]
[385304754,1757755917805,-1662.72,0.00027945,3]
[385304755,1757755917814,-836.54,0.00027945,3]
[385304756,1757755917823,-1708.68,0.00027945,3]
[385304757,1757755917832,-480.0,0.00027945,3]
[385304758,1757755917840,-619.88,0.00027945,3]
[385304759,1757755917850,-1393.21,0.00027945,3]
[385304760,1757755917860,-1863.52,0.00027945,3]
[385304761,1757755917869,-480.0,0.00027945,3]
[385304762,1757755917878,-1307.29,0.00027945,3]
[385304763,1757755917887,-480.0,0.00027945,3]
[385304764,1757755917895,-480.0,0.00027945,3]
[385304765,1757755917904,-528.66,0.00027945,3]
[385304766,1757755917914,-494.96,0.00027945,3]
[385304767,1757755917923,-1103.37,0.00027945,3]
[385304768,1757755917933,-518.27,0.00027945,3]
[385304769,1757755917946,-480.0,0.00027945,3]
[385304770,1757755917957,-516.82,0.00027945,3]
[385304771,1757755917966,-487.61,0.00027945,3]
[385304772,1757755918105,-832.35,0.00027945,3]
[385304773,1757755918114,-480.0,0.00027945,3]
[385304774,1757755918124,-480.0,0.00027945,3]
[385304775,1757755918133,-480.0,0.00027945,3]
[385304776,1757755918143,-1916.67,0.00027945,3]
[385304777,1757755918152,-480.0,0.00027945,3]
[385304778,1757755918162,-659.4,0.00027945,3]
[385304779,1757755918172,-480.0,0.00027945,3]
[385304780,1757755918182,-480.0,0.00027945,3]
[385304781,1757755918191,-480.0,0.00027945,3]
[385304782,1757755918201,-480.0,0.00027945,3]
[385304783,1757755918211,-597.41,0.00027945,3]
[385304784,1757755918220,-480.0,0.00027945,3]
[385304785,1757755918230,-606.7,0.00027945,3]
[385304786,1757755918240,-3205.05,0.00027945,3]
[385304787,1757755918250,-480.0,0.00027945,3]
[385304788,1757755918265,-480.0,0.00027945,3]
[385304789,1757755918277,-480.0,0.00027945,3]
[385304790,1757755918286,-744.12,0.00027945,3]
[385304791,1757755918295,-480.0,0.00027945,3]
[385304792,1757755918306,-2631.63,0.00027945,3]
[385304793,1757755918315,-1000.0,0.00027945,5]
[385304794,1757755918324,-191.72740902,0.00027945,5]
[385304795,1757755918334,-500.0,0.00027946,2]
[385304796,1757755918344,-1121.43,0.00027971,15]
[385304797,1757755918354,-260.81301056,0.00027997,2]
[385304798,1757755918363,-281571.30000067,0.00028,2]
[385304799,1757755918372,-1150.66,0.00028,7]
[385304800,1757755918382,-33611.13,0.00028,7]
[385304801,1757755918391,-1313.952,0.00028,2]
[385304802,1757755918400,-10288.15241663,0.00028,5]
[385304803,1757755918410,-7040.34763619,0.00028,120]
[385304804,1757755918419,-1485.0575856,0.00028018,2]
[385304805,1757755918427,-804.0,0.00028028,2]
[385304806,1757755918436,-151.26,0.00028037,15]
[385304807,1757755918446,-600.0,0.00028044,2]
[385304808,1757755918455,-500.0,0.0002806,2]
[385304809,1757755918464,-1121.43,0.00028071,15]
[385304810,1757755918473,-1485.0575856,0.00028118,2]
[385304811,1757755918483,-151.26,0.00028137,15]
[385304812,1757755918492,-2009.84718234,0.0002816,5]
[385304813,1757755918505,-1121.43,0.00028171,15]
[385304814,1757755918514,-500.0,0.00028213,120]
[385304815,1757755918523,-252.32,0.00028213,120]
[385304816,1757755918532,-1485.0575856,0.00028218,2]
[385304817,1757755918541,-1035.06,0.00028219,3]
[385304818,1757755918550,-480.0,0.00028219,3]
[385304819,1757755918559,-480.0,0.00028219,3]
[385304820,1757755918568,-480.0,0.00028219,3]
[385304821,1757755918578,-480.0,0.00028219,3]
[385304822,1757755918587,-480.0,0.00028219,3]
[385304823,1757755918596,-480.0,0.00028219,3]
[385304824,1757755918605,-480.0,0.00028219,3]
[385304825,1757755918614,-480.0,0.00028219,3]
[385304826,1757755918623,-480.0,0.00028219,3]
[385304827,1757755918633,-480.0,0.00028219,3]
[385304828,1757755918642,-480.0,0.00028219,3]
[385304829,1757755918651,-169.88913041,0.00028219,3]
[385304830,1757755918660,-497.12278042,0.00028219,3]
[385304831,1757755918669,-480.0,0.00028219,3]
[385304832,1757755918678,-480.0,0.00028219,3]
[385304833,1757755918688,-480.0,0.00028219,3]
[385304834,1757755918697,-480.0,0.00028219,3]
[385304835,1757755918706,-480.0,0.00028219,3]
[385304836,1757755918715,-480.0,0.00028219,3]
[385304837,1757755918724,-480.0,0.00028219,3]
[385304838,1757755918733,-480.0,0.00028219,3]
[385304839,1757755918742,-480.0,0.00028219,3]
[385304840,1757755918752,-480.0,0.00028219,3]
[385304841,1757755918761,-480.0,0.00028219,3]
[385304842,1757755918770,-537.74,0.00028219,3]
[385304843,1757755918780,-480.0,0.00028219,3]
[385304844,1757755918791,-480.0,0.00028219,3]
[385304845,1757755918801,-480.0,0.00028219,3]
[385304846,1757755918810,-480.0,0.00028219,3]
[385304847,1757755918820,-480.0,0.00028219,3]
[385304848,1757755918829,-456.70201931,0.00028219,3]
[385304849,1757755918839,-499.1,0.00028219,3]
[385304850,1757755918848,-480.69,0.00028219,3]
[385304851,1757755918857,-480.0,0.00028219,3]
[385304852,1757755918866,-480.0,0.00028219,3]
[385304853,1757755918876,-480.0,0.00028219,3]
[385304854,1757755918885,-519.58,0.00028219,3]
[385304855,1757755918894,-619.65,0.00028219,3]
[385304856,1757755918903,-480.0,0.00028219,3]
[385304857,1757755918913,-587.99,0.00028219,3]
[385304858,1757755918922,-480.0,0.00028219,3]
[385304859,1757755918931,-523.11,0.00028219,3]
[385304860,1757755918942,-653.04,0.00028219,3]
[385304861,1757755918951,-687.36,0.00028219,3]
[385304862,1757755918961,-500.40158555,0.00028219,3]
[385304863,1757755918970,-480.0,0.00028219,3]
[385304864,1757755918980,-484.0,0.00028219,3]
[385304865,1757755918990,-480.0,0.00028219,3]
[385304866,1757755918999,-523.39,0.00028219,3]
[385304867,1757755919009,-480.0,0.00028219,3]
[385304868,1757755919019,-509.39,0.00028219,3]
[385304869,1757755919028,-480.0,0.00028219,3]
[385304870,1757755919037,-480.0,0.00028219,3]
[385304871,1757755919047,-480.0,0.00028219,3]
[385304872,1757755919056,-480.0,0.00028219,3]
[385304873,1757755919065,-480.0,0.00028219,3]
[385304874,1757755919074,-480.0,0.00028219,3]
[385304875,1757755919083,-480.0,0.00028219,3]
[385304876,1757755919093,-177.29506966,0.00028219,3]
[385304877,1757755919102,-480.0,0.00028219,3]
[385304878,1757755919111,-1336.28,0.00028219,3]
[385304879,1757755919122,-306.25437572,0.00028219,3]
[385304880,1757755919131,-480.0,0.00028219,3]
[385304881,1757755919140,-480.0,0.00028219,3]
[385304882,1757755919150,-480.0,0.00028219,3]
[385304883,1757755919159,-589.38213773,0.00028219,3]
[385304884,1757755919167,-480.0,0.00028219,3]
[385304885,1757755919176,-616.42803772,0.00028219,3]
[385304886,1757755919186,-501.62,0.00028219,3]
[385304887,1757755919196,-480.0,0.00028219,3]
[385304888,1757755919206,-514.0,0.00028219,3]
[385304889,1757755919214,-480.0,0.00028219,3]
[385304890,1757755919224,-480.0,0.00028219,3]
[385304891,1757755919233,-480.0,0.00028219,3]
[385304892,1757755919242,-480.0,0.00028219,3]
[385304893,1757755919251,-537.4,0.00028219,3]
[385304894,1757755919263,-606.47,0.00028219,3]
[385304895,1757755919272,-627.39,0.00028219,3]
[385304896,1757755919282,-480.0,0.00028219,3]
[385304897,1757755919291,-608.64715097,0.00028219,3]
[385304898,1757755919300,-515.6,0.00028219,3]
[385304899,1757755919310,-480.0,0.00028219,3]
[385304900,1757755919319,-568.70079616,0.00028219,3]
[385304901,1757755919328,-480.0,0.00028219,3]
[385304902,1757755919337,-480.0,0.00028219,3]
[385304903,1757755919346,-480.0,0.00028219,3]
[385304904,1757755919355,-657.1,0.00028219,7]
[385304905,1757755919364,-571.51197333,0.00028219,3]
[385304906,1757755919373,-4289.53,0.00028219,3]
[385304907,1757755919382,-480.0,0.00028219,3]
[385304908,1757755919391,-615.59,0.00028219,3]
[385304909,1757755919400,-1017.38,0.00028219,3]
[385304910,1757755919410,-480.0,0.00028219,3]
[385304911,1757755919419,-480.0,0.00028219,3]
[385304912,1757755919428,-480.0,0.00028219,3]
[385304913,1757755919438,-480.0,0.00028219,3]
[385304914,1757755919448,-480.0,0.00028219,3]
[385304915,1757755919457,-480.0,0.00028219,3]
[385304916,1757755919466,-480.0,0.00028219,3]
[385304917,1757755919475,-480.0,0.00028219,3]
[385304918,1757755919485,-480.0,0.00028219,3]
[385304919,1757755919495,-480.0,0.00028219,3]
[385304920,1757755919504,-480.0,0.00028219,3]
[385304921,1757755919513,-480.0,0.00028219,3]
[385304922,1757755919523,-480.0,0.00028219,3]
[385304923,1757755919532,-480.0,0.00028219,3]
[385304924,1757755919541,-480.0,0.00028219,3]
[385304925,1757755919550,-480.0,0.00028219,3]
[385304926,1757755919560,-480.0,0.00028219,3]
[385304927,1757755919569,-480.0,0.00028219,3]
[385304928,1757755919579,-480.0,0.00028219,3]
[385304929,1757755919588,-480.0,0.00028219,3]
[385304930,1757755919598,-480.0,0.00028219,3]
[385304931,1757755919608,-480.0,0.00028219,3]
[385304932,1757755919617,-485.55,0.00028219,3]
[385304933,1757755919627,-480.0,0.00028219,3]
[385304934,1757755919636,-480.0,0.00028219,3]
[385304935,1757755919645,-480.0,0.00028219,3]
[385304936,1757755919655,-505.27,0.00028219,3]